bitfinex-derivatives/quotes_BTCF0:USTF0_20241029
["timestamp","ask_amount","ask_price","bid_price","bid_amount"]
[1730212901968,0.3608,71866.0,71854.0,0.38323246]
[1730212901969,0.069609,71862.0,71854.0,0.58390112]
[1730212902174,0.3648,71866.0,71859.0,0.20066866]
[1730212902363,0.3608,71866.0,71859.0,0.20066866]
[1730212902563,0.3608,71866.0,71864.0,0.20066866]
[1730212902761,0.3608,71866.0,71865.0,0.069606]
[1730212903668,0.069607,71864.0,71861.0,0.069609]
[1730212903865,0.3608,71866.0,71862.0,0.069608]
[1730212904066,0.069608,71863.0,71862.0,0.069608]
[1730212904967,0.069611,71860.0,71859.0,0.13332]
[1730212905572,0.069615,71855.0,71854.0,0.001]
[1730212905872,0.3608,71860.0,71849.0,0.0654]
[1730212906077,0.20066866,71854.0,71845.0,0.36168]
[1730212906274,0.069624,71847.0,71846.0,0.069624]
[1730212907274,0.13374797,71853.0,71845.0,0.3608]
[1730212907477,0.001,71847.0,71846.0,0.014]
[1730212908186,0.001,71847.0,71846.0,0.083624]
[1730212908365,0.001,71847.0,71846.0,0.097624]
[1730212909076,0.069621,71850.0,71848.0,0.069621]
[1730212909675,0.069617,71854.0,71852.0,0.069618]
[1730212909875,0.069617,71853.0,71852.0,0.069618]
[1730212910073,0.069618,71852.0,71851.0,0.13374797]
[1730212910882,0.069618,71852.0,71851.0,0.20336697]
[1730212911377,0.3608,71860.0,71848.0,0.004]
[1730212911378,0.069621,71849.0,71848.0,0.004]
[1730212911577,0.20336897,71849.0,71848.0,0.004]
[1730212911988,0.20336897,71849.0,71848.0,0.001]
[1730212912173,0.06963,71840.0,71839.0,0.3608]
[1730212912375,0.06963,71840.0,71839.0,0.430431]
[1730212912881,0.13374797,71852.0,71839.0,0.37857715]
[1730212913079,0.072622,71849.0,71847.0,0.13374797]
[1730212913270,0.05162399,71848.0,71847.0,0.20337097]
[1730212913473,0.12124599,71848.0,71847.0,0.13374797]
[1730212914279,0.12124599,71848.0,71845.0,0.069624]
[1730212914280,0.05162399,71848.0,71845.0,0.069624]
[1730212914577,0.069623,71847.0,71845.0,0.069624]
[1730212914775,0.05162399,71846.0,71845.0,0.069624]
[1730212915280,0.05180059,71846.0,71845.0,0.069624]
[1730212915681,0.069626,71844.0,71843.0,0.13374797]
[1730212915882,0.069626,71844.0,71842.0,0.069627]
[1730212916077,0.069626,71844.0,71839.0,0.51632512]
[1730212916078,0.069626,71844.0,71843.0,0.069627]
[1730212916580,0.06963,71840.0,71839.0,0.37949715]
[1730212916780,0.06963,71840.0,71839.0,0.3608]
[1730212917682,0.13374797,71841.0,71834.0,0.00208812]
[1730212917872,0.069634,71836.0,71834.0,0.00208812]
[1730212918076,0.069634,71836.0,71834.0,0.07172312]
[1730212918272,0.13374797,71841.0,71834.0,0.07172312]
[1730212918483,0.069635,71835.0,71834.0,0.07172312]
[1730212919289,0.069635,71835.0,71834.0,0.00208812]
[1730212919487,0.069635,71835.0,71834.0,0.08572412]
[1730212919987,0.069629,71841.0,71835.0,0.069635]
[1730212920194,0.3608,71842.0,71834.0,0.16383609]
[1730212920195,0.3608,71842.0,71838.0,0.13374797]
[1730212920485,0.20335897,71860.0,71840.0,0.49454797]
[1730212920685,0.13374797,71860.0,71849.0,0.13374797]
[1730212920879,0.064,71861.0,71853.0,0.13374797]
[1730212921080,0.064,71861.0,71855.0,0.069615]
[1730212921277,0.13583597,71867.0,71855.0,0.069615]
[1730212921484,0.002088,71867.0,71855.0,0.069615]
[1730212921685,0.3658,71856.0,71855.0,0.069615]
[1730212921991,0.005,71856.0,71855.0,0.430415]
[1730212922193,0.069611,71860.0,71855.0,0.3618]
[1730212922379,0.069611,71860.0,71858.0,0.20335997]
[1730212922887,0.13583597,71867.0,71858.0,0.20335997]
[1730212923094,0.069612,71859.0,71858.0,0.20335997]
[1730212924104,0.069612,71858.0,71849.0,0.3618]
[1730212924305,0.069617,71853.0,71849.0,0.430421]
[1730212924509,0.06962,71851.0,71849.0,0.430421]
[1730212925196,0.001,71860.0,71850.0,0.13374797]
[1730212925505,0.069614,71857.0,71855.0,0.20336297]
[1730212925706,0.069614,71856.0,71855.0,0.13374797]
[1730212926304,0.069614,71856.0,71849.0,0.3748]
[1730212926305,0.06962,71850.0,71849.0,0.3748]
[1730212926493,0.06962,71850.0,71849.0,0.444421]
[1730212926692,0.06962,71850.0,71849.0,0.3748]
[1730212926893,0.06962,71850.0,71849.0,0.444421]
[1730212927509,0.069617,71854.0,71851.0,0.069619]
[1730212927707,0.13374797,71860.0,71849.0,0.3608]
[1730212927905,0.069614,71856.0,71855.0,0.003]
[1730212928402,0.069618,71853.0,71850.0,0.06962]
[1730212928599,0.069618,71853.0,71851.0,0.13374797]
[1730212928795,0.069613,71858.0,71857.0,0.069613]
[1730212929205,0.49454797,71868.0,71849.0,0.3748]
[1730212929508,0.49454797,71868.0,71791.0,0.09679843]
[1730212929509,0.4876,71843.0,71791.0,0.09679843]
[1730212929700,0.069695,71773.0,71732.0,0.3608]
[1730212929900,0.13374797,71733.0,71731.0,0.0020911]
[1730212930101,0.3608,71763.0,71732.0,2.1608]
[1730212930300,0.00209082,71811.0,71733.0,0.202653]
[1730212930301,0.13374797,71755.0,71733.0,0.202653]
[1730212930509,0.3608,71750.0,71738.0,0.3608]
[1730212930804,0.3608,71744.0,71738.0,0.3608]
[1730212931005,0.3608,71744.0,71739.0,0.13996]
[1730212931216,0.3608,71744.0,71743.0,0.037739]
[1730212931395,0.62829594,71744.0,71743.0,0.037739]
[1730212931600,0.069727,71740.0,71732.0,0.13996]
[1730212931800,0.069727,71740.0,71731.0,0.0020911]
[1730212931801,0.49454797,71733.0,71731.0,0.0160911]
[1730212932004,0.49454797,71733.0,71732.0,0.13996]
[1730212932005,0.85534797,71733.0,71732.0,0.13996]
[1730212932406,0.85534797,71733.0,71731.0,0.0160911]
[1730212932608,0.40191972,71732.0,71731.0,0.014]
[1730212933004,0.40187972,71732.0,71731.0,0.014]
[1730212933209,0.40187972,71732.0,71723.0,0.14]
[1730212933210,0.20095986,71732.0,71723.0,0.14]
[1730212933407,0.3608,71724.0,71723.0,0.14]
[1730212933910,0.3608,71724.0,71717.0,0.15767307]
[1730212934213,0.3608,71718.0,71716.0,0.00209138]
[1730212934407,0.3608,71718.0,71716.0,0.14209138]
[1730212934603,0.3608,71718.0,71716.0,0.00209138]
[1730212934804,0.20095986,71717.0,71716.0,0.00209138]
[1730212935004,0.3608,71718.0,71716.0,0.00209138]
[1730212935199,0.20095986,71717.0,71716.0,0.00209138]
[1730212935902,0.20095986,71717.0,71704.0,0.1229]
[1730212935903,0.069761,71705.0,71704.0,0.1229]
[1730212936217,0.069771,71696.0,71694.0,1.5]
[1730212936513,0.3608,71695.0,71694.0,1.5]
[1730212936814,0.3608,71695.0,71686.0,0.0628]
[1730212936815,0.069775,71691.0,71686.0,0.0628]
[1730212937010,0.3608,71687.0,71686.0,0.0628]
[1730212937206,0.3608,71687.0,71686.0,0.26383008]
[1730212937505,0.3608,71687.0,71686.0,1.76385139]
[1730212938609,0.3618,71687.0,71686.0,1.5768]
[1730212938798,0.3618,71687.0,71686.0,0.0908]
[1730212940817,0.3618,71687.0,71686.0,0.0768]
[1730212941116,0.3648,71687.0,71686.0,0.0768]
[1730212941620,0.3698,71687.0,71686.0,0.001]
[1730212941809,0.069788,71677.0,71676.0,0.00209271]
[1730212942004,0.63163939,71677.0,71676.0,0.00209271]
[1730212942316,0.069814,71652.0,71650.0,0.1854]
[1730212942505,0.3608,71651.0,71650.0,0.1854]
[1730212943008,0.3608,71651.0,71635.0,0.00293379]
[1730212943009,0.069828,71636.0,71635.0,0.00209379]
[1730212943205,0.99247939,71636.0,71635.0,0.00209379]
[1730212943401,0.7216,71636.0,71635.0,0.00209379]
[1730212943615,0.069819,71646.0,71635.0,0.00209379]
[1730212943912,0.36076,71644.0,71639.0,0.20105139]
[1730212944116,0.43058,71644.0,71639.0,0.20105139]
[1730212944312,0.36076,71644.0,71635.0,0.00209379]
[1730212944514,0.069827,71637.0,71635.0,0.00209379]
[1730212944719,0.27105259,71637.0,71635.0,0.01409379]
[1730212944909,0.069827,71637.0,71635.0,0.01409379]
[1730212945117,0.3608,71638.0,71635.0,0.01409379]
[1730212945312,0.2646,71638.0,71637.0,0.3102385]
[1730212945815,0.0008,71644.0,71637.0,0.3102385]
[1730212946011,0.001,71646.0,71643.0,0.3102385]
[1730212946210,0.3608,71652.0,71643.0,0.3102385]
[1730212946612,0.001,71644.0,71643.0,0.3102385]
[1730212947120,0.008,71646.0,71643.0,0.3102385]
[1730212947607,0.069814,71651.0,71643.0,0.3102385]
[1730212947808,0.069814,71651.0,71643.0,0.3112385]
[1730212948021,0.069816,71649.0,71643.0,0.001]
[1730212948613,0.3608,71645.0,71643.0,0.001]
[1730212949016,0.36076,71645.0,71643.0,0.001]
[1730212949216,0.36076,71645.0,71641.0,1.5]
[1730212949520,0.36076,71645.0,71643.0,0.001]
[1730212950117,0.36172,71645.0,71643.0,0.001]
[1730212950516,0.006,71649.0,71644.0,0.48854]
[1730212950722,0.006,71649.0,71648.0,0.3608]
[1730212950917,0.3608,71659.0,71648.0,0.3608]
[1730212951117,0.3608,71659.0,71655.0,0.3102385]
[1730212952630,0.003,71659.0,71655.0,0.3102385]
[1730212952831,0.003,71659.0,71658.0,0.3608]
[1730212953028,0.003,71659.0,71656.0,0.14024]
[1730212953532,0.006,71659.0,71656.0,0.14024]
[1730212954031,0.003,71659.0,71656.0,0.14024]
[1730212954336,0.006,71659.0,71656.0,0.14024]
[1730212954931,0.006,71659.0,71655.0,0.3109585]
[1730212955237,0.003,71659.0,71656.0,0.14224]
[1730212955428,0.003,71659.0,71657.0,0.3608]
[1730212955830,0.430601,71665.0,71657.0,0.3608]
[1730212956137,0.3608,71665.0,71657.0,0.3608]
[1730212956731,0.00209402,71669.0,71659.0,0.069806]
[1730212956925,0.00209402,71669.0,71668.0,0.3800355]
[1730212957132,0.36076,71683.0,71673.0,0.069791]
[1730212957339,0.36076,71683.0,71673.0,0.3608]
[1730212957630,0.36076,71683.0,71674.0,0.14024]
[1730212958140,0.069783,71682.0,71674.0,0.14024]
[1730212958937,0.069783,71682.0,71674.0,0.14124]
[1730212959445,0.069783,71682.0,71674.0,0.15908145]
[1730212959625,0.078783,71682.0,71674.0,0.16008145]
[1730212960530,0.084783,71682.0,71674.0,0.16008145]
[1730212960730,0.015,71682.0,71674.0,0.16008145]
[1730212960932,0.015,71682.0,71676.0,0.069789]
[1730212961232,0.009,71682.0,71679.0,0.069786]
[1730212961534,0.015,71682.0,71681.0,0.430584]
[1730212962037,0.3608,71689.0,71688.0,0.069778]
[1730212962340,0.00209325,71701.0,71688.0,0.13724]
[1730212962341,0.07185825,71701.0,71688.0,0.13724]
[1730212962643,0.00209325,71701.0,71696.0,0.069769]
[1730212963237,0.00209325,71701.0,71699.0,0.069767]
[1730212963441,0.00209325,71701.0,71700.0,0.069766]
[1730212963644,0.01609325,71701.0,71700.0,0.2867779]
[1730212964341,0.01609325,71701.0,71700.0,0.7051779]
[1730212964532,0.3608,71717.0,71711.0,0.069755]
[1730212964733,0.06136809,71716.0,71712.0,0.13724]
[1730212964933,0.06136809,71715.0,71713.0,0.13724]
[1730212965136,0.3608,71717.0,71713.0,0.13724]
[1730212965137,0.06136809,71714.0,71713.0,0.13724]
[1730212966538,0.06536809,71714.0,71713.0,0.13724]
[1730212967340,0.004,71714.0,71713.0,0.1372]
[1730212967735,0.004,71714.0,71713.0,0.206953]
[1730212968235,0.3608,71717.0,71713.0,0.206953]
[1730212968743,0.36076,71717.0,71713.0,0.206953]
[1730212970544,0.36076,71717.0,71713.0,0.069753]
[1730212970746,0.36076,71717.0,71714.0,0.1372]
[1730212971939,0.36176,71717.0,71716.0,0.06975]
[1730212977550,0.431509,71717.0,71716.0,0.06975]
[1730212978538,0.36176,71717.0,71716.0,0.06975]
[1730212981649,0.001,71717.0,71716.0,0.06975]
[1730212983056,0.001,71717.0,71716.0,0.07075]
[1730212983253,0.069738,71729.0,71716.0,0.004]
[1730212983455,0.3608,71724.0,71716.0,0.004]
[1730212983663,0.069773,71693.0,71691.0,0.069775]
[1730212983855,0.069773,71693.0,71685.0,0.0585]
[1730212983856,0.50150452,71692.0,71685.0,0.0585]
[1730212984154,0.57128452,71686.0,71685.0,0.0585]
[1730212984353,0.50150452,71686.0,71685.0,0.0585]
[1730212984653,0.3608,71686.0,71685.0,0.26898452]
[1730212984848,0.3608,71691.0,71686.0,0.06978]
[1730212985051,0.3608,71699.0,71685.0,0.19920452]
[1730212985052,0.3608,71699.0,71697.0,0.069768]
[1730212985248,0.3608,71699.0,71690.0,0.14070452]
[1730212985249,0.3608,71699.0,71698.0,0.206928]
[1730212986047,0.3608,71708.0,71707.0,0.069759]
[1730212986448,0.3608,71716.0,71709.0,0.069757]
[1730212986659,0.3608,71710.0,71698.0,0.19806]
[1730212986855,0.3608,71710.0,71705.0,0.069761]
[1730212987048,0.430556,71710.0,71705.0,0.069761]
[1730212987252,0.50150452,71716.0,71708.0,0.069758]
[1730212987858,0.3608,71709.0,71708.0,0.069758]
[1730212988964,0.36075708,71709.0,71708.0,0.070758]
[1730212989665,0.36075708,71709.0,71708.0,0.08467971]
[1730212989963,0.36075708,71709.0,71708.0,0.08367971]
[1730212990460,0.36075708,71709.0,71708.0,0.08567971]
[1730212990657,0.3608,71717.0,71716.0,0.06975]
[1730212990961,0.3608,71726.0,71716.0,0.49372]
[1730212991159,0.430541,71726.0,71725.0,0.069742]
[1730212991367,0.3608,71726.0,71725.0,0.069742]
[1730212991756,0.430541,71726.0,71725.0,0.069742]
[1730212992456,0.069743,71724.0,71721.0,0.069745]
[1730212993051,0.3618,71726.0,71716.0,0.49444]
[1730212993251,0.3618,71726.0,71716.0,0.49372]
[1730212993459,0.3608,71726.0,71716.0,0.3608]
[1730212993660,0.069753,71713.0,71712.0,0.069754]
[1730212994261,0.069753,71713.0,71712.0,0.13292]
[1730212994262,0.430553,71713.0,71712.0,0.13292]
[1730212994451,0.430547,71720.0,71719.0,0.069747]
[1730212994651,0.3608,71720.0,71719.0,0.069747]
[1730212995551,0.3608,71720.0,71716.0,0.001]
[1730212995552,0.069745,71722.0,71718.0,0.3608]
[1730212995751,0.005,71726.0,71725.0,0.069742]
[1730212996058,0.00209214,71731.0,71730.0,0.069737]
[1730212997259,0.069735,71732.0,71730.0,0.069737]
[1730212997463,0.069735,71732.0,71731.0,0.069736]
[1730212997650,0.3608,71737.0,71733.0,0.069733]
[1730212997850,0.069732,71735.0,71734.0,0.13288]
[1730212998059,0.13030006,71735.0,71734.0,0.13288]
[1730212998962,0.06056806,71735.0,71730.0,0.001]
[1730212999162,0.004,71732.0,71731.0,0.070736]
[1730212999755,0.069733,71734.0,71733.0,0.069734]
[1730213000152,0.005,71735.0,71730.0,0.13388]
[1730213000358,0.06059122,71734.0,71733.0,0.069734]
[1730213000664,0.001,71735.0,71734.0,0.069733]
[1730213001057,0.06173809,71735.0,71734.0,0.069733]
[1730213001257,0.001,71735.0,71734.0,0.21043752]
[1730213001668,0.06177914,71735.0,71734.0,0.21043752]
[1730213001956,0.3608,71737.0,71736.0,0.069731]
[1730213002161,0.4216457,71737.0,71736.0,0.069731]
[1730213002753,0.328,71767.0,71736.0,0.069731]
[1730213002965,0.17488095,71787.0,71736.0,0.21043552]
[1730213003168,0.14070452,71873.0,71825.0,0.3608]
[1730213003366,0.3608,71870.0,71858.0,0.3608]
[1730213003556,0.14070452,71861.0,71852.0,0.05500061]
[1730213003752,0.10587754,71861.0,71854.0,0.02710061]
[1730213003959,0.14070452,71855.0,71851.0,0.02710061]
[1730213004159,0.14070452,71855.0,71851.0,0.3608]
[1730213004362,0.71752,71854.0,71851.0,0.3608]
[1730213004665,0.41752,71854.0,71851.0,0.3608]
[1730213004862,0.14044376,71863.0,71851.0,0.3608]
[1730213005064,0.85872376,71863.0,71858.0,0.3608]
[1730213005270,0.3,71863.0,71859.0,0.57729024]
[1730213005464,0.41748,71861.0,71859.0,0.3608]
[1730213005669,0.71744,71871.0,71859.0,0.3608]
[1730213005867,0.71744,71871.0,71867.0,0.3608]
[1730213006164,0.71744,71870.0,71867.0,0.3608]
[1730213006358,0.71744,71871.0,71867.0,0.3608]
[1730213006769,0.21649024,71868.0,71859.0,0.3628]
[1730213006967,0.21649024,71860.0,71859.0,0.002]
[1730213007170,0.21649024,71860.0,71859.0,0.3618]
[1730213007364,0.89217669,71860.0,71859.0,0.3618]
[1730213007668,0.41748,71860.0,71859.0,0.3618]
[1730213008169,0.15936,71869.0,71860.0,0.06961]
[1730213008361,0.004,71870.0,71868.0,0.3608]
[1730213008556,0.1586,71869.0,71868.0,0.3608]
[1730213008760,0.57604,71869.0,71868.0,0.3608]
[1730213009457,0.41744,71868.0,71854.0,0.3608]
[1730213009665,0.41744,71868.0,71818.0,0.08297608]
[1730213009666,0.57728211,71855.0,71839.0,0.069631]
[1730213009870,0.3608,71846.0,71835.0,0.3608]
[1730213010073,0.3608,71846.0,71842.0,0.069628]
[1730213010262,0.3608,71855.0,71842.0,0.3608]
[1730213010457,0.3608,71855.0,71846.0,0.04875523]
[1730213010859,0.3608,71855.0,71850.0,0.06962]
[1730213011264,0.51936,71855.0,71850.0,0.06962]
[1730213012663,0.3628,71855.0,71850.0,0.06962]
[1730213012859,0.52536,71855.0,71850.0,0.06962]
[1730213013261,0.52136,71855.0,71850.0,0.06962]
[1730213013461,0.52336,71855.0,71850.0,0.07062]
[1730213013665,0.52636,71855.0,71850.0,0.07162]
[1730213014369,0.52636,71855.0,71850.0,0.002]
[1730213014866,0.3678,71855.0,71850.0,0.002]
[1730213016271,0.3678,71855.0,71850.0,0.07162]
[1730213016966,0.3678,71855.0,71854.0,0.069616]
[1730213017762,0.007,71855.0,71854.0,0.11837123]
[1730213018161,0.007,71855.0,71854.0,0.33485334]
[1730213018470,0.3608,71869.0,71868.0,0.069603]
[1730213018664,0.3608,71869.0,71868.0,0.11835823]
[1730213018862,0.00208878,71876.0,71875.0,0.069596]
[1730213019066,0.00208878,71876.0,71875.0,0.11835123]
[1730213020166,0.00408878,71876.0,71875.0,0.070596]
[1730213020371,0.00408878,71876.0,71875.0,0.04975523]
[1730213020576,0.64197089,71876.0,71852.0,0.3608]
[1730213020773,0.3608,71864.0,71863.0,0.069607]
[1730213021167,0.3608,71864.0,71863.0,0.11836223]
[1730213021367,0.3608,71874.0,71863.0,0.04875523]
[1730213021568,0.3608,71874.0,71873.0,0.11835323]
[1730213021865,0.00808878,71876.0,71875.0,0.069596]
[1730213022074,0.23054964,71887.0,71875.0,0.04875523]
[1730213022075,0.3608,71885.0,71875.0,0.04875523]
[1730213022381,0.069574,71898.0,71892.0,0.069579]
[1730213022675,0.069574,71898.0,71882.0,0.28607111]
[1730213022676,0.36156,71899.0,71898.0,0.069574]
[1730213022970,0.3608,71899.0,71898.0,0.069574]
[1730213023164,0.41686,71906.0,71898.0,0.04875523]
[1730213023165,0.36156,71906.0,71898.0,0.04875523]
[1730213023370,0.36156,71906.0,71893.0,0.3608]
[1730213023371,0.3608,71906.0,71905.0,0.069567]
[1730213024083,0.778,71906.0,71898.0,0.001]
[1730213024283,0.64675553,71899.0,71898.0,0.001]
[1730213024576,0.64675553,71899.0,71898.0,0.069574]
[1730213024775,1.06399553,71899.0,71898.0,0.069574]
[1730213024972,0.847613,71899.0,71898.0,0.069574]
[1730213025175,0.3608,71899.0,71898.0,0.069574]
[1730213025375,0.3608,71899.0,71898.0,0.070574]
[1730213025980,0.3608,71899.0,71898.0,0.069574]
[1730213026180,0.3608,71899.0,71898.0,0.070574]
[1730213026378,0.3608,71899.0,71898.0,0.071574]
[1730213026573,0.430373,71899.0,71898.0,0.071574]
[1730213026973,1.06399553,71899.0,71875.0,0.069595]
[1730213027178,0.3608,71889.0,71888.0,0.069583]
[1730213027377,0.38860947,71889.0,71888.0,0.069583]
[1730213027671,0.31902747,71889.0,71888.0,0.069583]
[1730213028271,0.069582,71889.0,71888.0,0.069583]
[1730213028672,0.069585,71887.0,71886.0,0.069585]
[1730213029479,0.069585,71887.0,71875.0,0.069595]
[1730213029480,0.21638253,71888.0,71871.0,0.430399]
[1730213029681,0.3608,71883.0,71871.0,0.3608]
[1730213029877,0.069592,71879.0,71878.0,0.069592]
[1730213031475,0.069595,71876.0,71875.0,0.069596]
[1730213032585,0.3608,71883.0,71878.0,0.004]
[1730213032586,0.069592,71879.0,71878.0,0.004]
[1730213032799,0.64683977,71879.0,71878.0,0.004]
[1730213032980,0.069606,71865.0,71859.0,0.06875077]
[1730213033181,0.3608,71866.0,71865.0,0.069606]
[1730213033384,0.0696,71871.0,71868.0,0.069602]
[1730213033681,0.3608,71872.0,71869.0,0.069602]
[1730213033682,0.069601,71870.0,71869.0,0.069602]
[1730213033878,0.3608,71872.0,71871.0,0.0696]
[1730213034082,0.069594,71877.0,71876.0,0.069595]
[1730213034288,0.1536,71878.0,71877.0,0.069594]
[1730213034488,0.069593,71879.0,71877.0,0.069594]
[1730213034996,0.069597,71874.0,71869.0,0.001]
[1730213035293,0.3608,71870.0,71869.0,0.070602]
[1730213035689,0.31205151,71870.0,71869.0,0.30576124]
[1730213035887,0.0696,71871.0,71870.0,0.069601]
[1730213036095,0.0696,71871.0,71870.0,0.30476001]
[1730213037087,0.0766,71871.0,71870.0,0.30576001]
[1730213037287,0.63441249,71871.0,71870.0,0.10806279]
[1730213037488,0.63441249,71871.0,71870.0,0.23716428]
[1730213037694,0.63441249,71871.0,71870.0,0.10806279]
[1730213038086,0.63441249,71871.0,71870.0,0.19100501]
[1730213038591,0.63441249,71871.0,71870.0,0.10806279]
[1730213038779,0.64582636,71871.0,71870.0,0.10806279]
[1730213038985,0.57622636,71871.0,71870.0,0.10806279]
[1730213039186,0.22842636,71871.0,71870.0,0.10806279]
[1730213039693,0.64582636,71871.0,71870.0,0.19098832]
[1730213040394,0.64582636,71871.0,71870.0,0.19101045]
[1730213040589,0.64582636,71871.0,71870.0,0.10807175]
[1730213041494,0.08801387,71871.0,71870.0,0.17767275]
[1730213041695,0.08801387,71871.0,71870.0,0.30677222]
[1730213042193,0.01841387,71871.0,71870.0,0.30677222]
[1730213042389,0.007,71871.0,71870.0,0.3555263]
[1730213042795,0.007,71871.0,71870.0,0.49593879]
[1730213043000,0.5378,71890.0,71874.0,0.069596]
[1730213043296,0.069586,71886.0,71885.0,0.069586]
[1730213043498,0.069586,71886.0,71885.0,0.30469587]
[1730213043703,0.069586,71886.0,71885.0,0.17562652]
[1730213043896,0.069586,71886.0,71885.0,0.10604052]
[1730213044091,0.786906,71886.0,71885.0,0.10604052]
[1730213044291,0.71732,71886.0,71877.0,0.08293685]
[1730213044597,0.3608,71878.0,71877.0,0.11834923]
[1730213044896,0.3608,71878.0,71877.0,0.35348335]
[1730213045692,0.3608,71878.0,71877.0,0.22540069]
[1730213046396,0.3608,71878.0,71877.0,0.35448221]
[1730213046594,0.069585,71887.0,71886.0,0.069583]
[1730213046788,0.61851309,71890.0,71889.0,0.069582]
[1730213046992,0.61851309,71890.0,71889.0,0.17563346]
[1730213047502,0.75892558,71890.0,71889.0,0.10605146]
[1730213047902,1.17624558,71890.0,71889.0,0.10605146]
[1730213048803,1.14143078,71890.0,71889.0,0.10705146]
[1730213049595,1.14143078,71890.0,71889.0,0.10805146]
[1730213049798,1.14143078,71890.0,71889.0,0.17729849]
[1730213050202,1.14143078,71890.0,71889.0,0.1080474]
[1730213050403,1.14143078,71890.0,71889.0,0.002]
[1730213050701,0.72411078,71890.0,71889.0,0.002]
[1730213050903,1.14143078,71890.0,71889.0,0.002]
[1730213051107,0.72411078,71890.0,71889.0,0.002]
[1730213051298,1.14143078,71890.0,71889.0,0.002]
[1730213051795,0.72411078,71890.0,71889.0,0.002]
[1730213052191,0.72411078,71890.0,71889.0,0.001]
[1730213052397,0.72411078,71890.0,71889.0,0.002]
[1730213052605,0.58369829,71890.0,71889.0,0.002]
[1730213053100,0.58369829,71890.0,71889.0,0.12033723]
[1730213053101,0.07707221,71890.0,71889.0,0.12033723]
[1730213053305,0.50745421,71890.0,71889.0,0.12033723]
[1730213053495,0.50745421,71890.0,71889.0,0.002]
[1730213053906,0.50745421,71890.0,71889.0,0.12033723]
[1730213054106,0.50745421,71890.0,71889.0,0.05075523]
[1730213054607,0.50745421,71890.0,71889.0,0.12033723]
[1730213055103,0.43787221,71890.0,71889.0,0.12033723]
[1730213055707,0.07707221,71890.0,71889.0,0.12033723]
[1730213056203,0.3608,71899.0,71889.0,0.12033723]
[1730213056204,0.00076,71940.0,71912.0,0.4304]
[1730213056402,0.3608,71951.0,71936.0,0.430337]
[1730213056803,0.069536,71938.0,71936.0,0.47180778]
[1730213056999,0.069545,71928.0,71927.0,0.3608]
[1730213057195,0.06124914,71937.0,71936.0,0.069537]
[1730213057805,0.05,71937.0,71936.0,0.069537]
[1730213058197,0.05,71937.0,71936.0,0.11088854]
[1730213058403,0.05,71937.0,71936.0,0.069537]
[1730213059497,0.05,71937.0,71936.0,0.070537]
[1730213060610,0.119536,71937.0,71936.0,0.071537]
[1730213060816,0.05,71937.0,71936.0,0.5726321]
[1730213061112,0.05,71937.0,71936.0,0.432337]
[1730213062103,0.05,71937.0,71936.0,0.3628]
[1730213062299,0.05,71937.0,71936.0,0.5726321]
[1730213063503,0.05,71937.0,71936.0,0.432337]
[1730213065411,0.05,71937.0,71936.0,0.5726321]
[1730213065611,0.05,71937.0,71936.0,0.432337]
[1730213066309,0.119536,71937.0,71936.0,0.3628]
[1730213066510,0.119536,71937.0,71936.0,0.36236]
[1730213066711,0.112436,71937.0,71936.0,0.36236]
[1730213066912,0.105536,71937.0,71936.0,0.431897]
[1730213067217,0.105536,71937.0,71936.0,0.36236]
[1730213068716,0.105536,71937.0,71936.0,0.431897]
[1730213071117,0.105496,71937.0,71936.0,0.431897]
[1730213072011,0.105496,71937.0,71936.0,0.36236]
[1730213072714,0.03596,71937.0,71936.0,0.431897]
[1730213072914,0.03596,71937.0,71936.0,0.36236]
[1730213073416,0.105496,71937.0,71936.0,0.431897]
[1730213074010,0.03596,71937.0,71936.0,0.431897]
[1730213074509,0.03596,71937.0,71936.0,0.36236]
[1730213074510,0.105496,71937.0,71936.0,0.36236]
[1730213074715,0.105496,71937.0,71936.0,0.00156]
[1730213074913,0.105496,71937.0,71936.0,0.071097]
[1730213075314,0.03596,71937.0,71936.0,0.071097]
[1730213076322,0.105496,71937.0,71936.0,0.071097]
[1730213077617,0.105496,71937.0,71936.0,0.00156]
[1730213078521,0.105496,71937.0,71936.0,0.071097]
[1730213078920,0.105496,71937.0,71936.0,0.00156]
[1730213079721,0.105496,71937.0,71936.0,0.431897]
[1730213080121,0.03596,71937.0,71936.0,0.5721921]
[1730213084531,0.03596,71937.0,71936.0,0.431897]
[1730213085136,0.03596,71937.0,71936.0,0.47324854]
[1730213085832,0.105496,71937.0,71936.0,0.431897]
[1730213087929,0.03596,71937.0,71936.0,0.431897]
[1730213088322,0.105496,71937.0,71936.0,0.431897]
[1730213088526,0.105496,71937.0,71936.0,0.36236]
[1730213088728,0.03596,71937.0,71936.0,0.52541652]
[1730213088937,0.03596,71937.0,71936.0,0.56700903]
[1730213089132,0.03596,71937.0,71936.0,0.52541652]
[1730213089528,0.105496,71937.0,71936.0,0.431897]
[1730213091032,0.105496,71937.0,71926.0,0.04159251]
[1730213091033,0.67160528,71937.0,71907.0,0.0830208]
[1730213091240,0.90863904,71908.0,71892.0,5.4e-07]
[1730213091424,0.90863904,71908.0,71879.0,0.04166859]
[1730213091425,0.069583,71889.0,71859.0,0.055611]
[1730213091630,0.3608,71865.0,71860.0,0.06961]
[1730213091826,0.3608,71864.0,71856.0,0.09351952]
[1730213092030,0.3608,71864.0,71852.0,0.09351952]
[1730213092227,0.3608,71857.0,71851.0,0.0682]
[1730213092530,0.09351952,71853.0,71851.0,0.0682]
[1730213092930,0.09351952,71853.0,71852.0,0.16358969]
[1730213093130,0.16313652,71853.0,71852.0,0.16358969]
[1730213093342,0.17418805,71853.0,71852.0,0.16358969]
[1730213093634,0.069618,71852.0,71851.0,0.028]
[1730213093940,0.16313752,71852.0,71851.0,0.028]
[1730213094243,0.16313752,71852.0,71851.0,0.014]